Cogmind - Beta 16.1 @@@ ROGUE MODE // 2026.03.04 @ 23:41:30 Player: Doglevel Result: Destroyed by G-47 Trooper with Particle Gun Performance ------------- Evolutions (2) 1000 Regions Visited (4) 800 Robots Destroyed (25) 125 Value Destroyed (749) 749 Prototype IDs (0) 0 Alien Tech Used (0) 0 Bonus (0) 0 TOTAL SCORE: 2674 Bonus ------- None Cogmind --------- Core Integrity 0/550 Matter 280/300 Energy 25/100 System Corruption 0% Temperature Cool (9) Movement Core (50) Location -8/Materials Parts ------- > --- POWER (2) -------- (None) > --- PROPULSION (3) --- (None) > --- UTILITY (3) ------ (None) > --- WEAPON (3) ------- Hammer > --- INVENTORY (5) ---- Improved Heat Sink Small Storage Unit Small Laser Peak State ------------ > --- POWER ------------ (None) > --- PROPULSION ------- Aluminum Leg Aluminum Leg Improved Aluminum Leg > --- UTILITY ---------- Medium Storage Unit Energy Filter Hacking Suite > --- WEAPON ----------- Heavy Laser Heavy Laser Katana > --- INVENTORY -------- Light Treads Improved Heat Sink Small Storage Unit Small Laser Particle Gun Hammer [Rating: 23] Favorites ----------- Power Ion Engine Engine Ion Engine Propulsion Aluminum Leg Treads Light Treads Leg Aluminum Leg Utility Medium Storage Unit Device ECM Suite Storage Medium Storage Unit Hackware Hacking Suite Weapon Heavy Assault Rifle Energy Gun Small Laser Energy Cannon Beam Cannon Ballistic Gun Heavy Assault Rifle Launcher Grenade Launcher Special Weapon Mining Laser Impact Weapon Hammer Slashing Weapon Katana Build | -11 -10 -9 -9 -8 ------- Run | Yrd Mat Mat Min Mat Slots Evolved 4 | . . 2 . 2 Power 1 | . . 1 . . Propulsion 1 | . . . . 1 Utility 1 | . . 1 . . Weapon 1 | . . . . 1 Parts Attached 35 | 4 3 18 3 7 Power 5 | 1 . 4 . . Engine 5 | 1 . 4 . . Core . | . . . . . Reactor . | . . . . . Propulsion 11 | 2 . 6 2 1 Treads 4 | . . 4 . . Leg 7 | 2 . 2 2 1 Wheel . | . . . . . Hover . | . . . . . Flight . | . . . . . Utility 7 | 1 1 3 . 2 Device 4 | . 1 2 . 1 Storage 2 | 1 . 1 . . Processor . | . . . . . Hackware 1 | . . . . 1 Protection . | . . . . . Artifact . | . . . . . Weapon 12 | . 2 5 1 4 Energy Gun 5 | . 1 1 . 3 Energy Cannon 1 | . . 1 . . Ballistic Gun 2 | . . 1 1 . Ballistic Cannon . | . . . . . Launcher 1 | . 1 . . . Special Weapon 1 | . . 1 . . Impact Weapon 1 | . . . . 1 Slashing Weapon 1 | . . 1 . . Piercing Weapon . | . . . . . Special Melee Weapon . | . . . . . Unidentified Prototypes . | . . . . . Parts Lost 26 | . . 5 3 18 Power 5 | . . 2 . 3 Propulsion 7 | . . 2 . 5 Utility 6 | . . 1 1 4 Weapon 8 | . . . 2 6 Highest Loss Streak 18 | . . 3 3 18 To Critical Strikes . | . . . . . Average Backups 7 | 3 4 7 7 8 Power . | . 1 . 1 . Propulsion 2 | 1 2 2 2 1 Utility 1 | . . 1 1 2 Weapon 3 | 1 1 3 2 3 Tool/Special . | . . . . . Unused Backups 1 | . . . . 1 Power . | . . . . . Propulsion . | . . . . . Utility 1 | . . . . 1 Weapon . | . . . . . Tool/Special . | . . . . . Average Slot Usage (%) 86 | . 83 89 86 79 Engine 16 | . 14 18 22 8 Treads 1 | . . 3 . . Leg 20 | . 28 17 22 22 Device 12 | . 3 16 11 7 Storage 10 | . 14 11 11 8 Hackware 1 | . . . . 7 Energy Gun 4 | . 14 2 . 9 Energy Cannon 1 | . . 2 . . Ballistic Gun 6 | . . 6 9 7 Launcher 3 | . 8 5 . . Special Weapon 1 | . . 2 1 . Slashing Weapon 4 | . . 2 9 6 Peak Build Rating 23 | 4 7 14 13 23 Average Rating 11 | 3 5 10 11 18 On Entrance 7 | . 4 7 12 13 Avg Prop Armor Cover (%) . | . . . . . Naked Turns . | . . . . . Heaviest Build 30 | 8 13 30 26 29 Greatest Support 40 | 20 20 40 26 36 Greatest Overweight (x) 1 | 1 . 1 1 1 Average Overweight (x) . | . . . . . Largest Inventory Capacity 10 | 8 8 10 10 10 Average Capacity 9 | 7 8 9 10 9 Most Carried 10 | 5 5 10 8 10 Average Carried 7 | 3 4 7 6 8 Final Capacity 10 | 8 8 10 10 5 Final Carried 8 | 5 5 8 8 3 Class Distribution -------------------- 52% | Scavenger-Mutant 44% | Mutant 3% | Gunner Dominant Class ---------------- Mutant | -10/Materials Scavenger-Mutant | -9/Materials Scavenger-Mutant | -9/Mines Scavenger-Mutant | -8/Materials Resources | -11 -10 -9 -9 -8 ----------- Run | Yrd Mat Mat Min Mat Matter Collected 814 | 194 5 290 183 142 Remotely . | . . . . . Salvage Created 757 | . 27 347 97 286 Parts 52 | . 5 24 3 20 Haulers Intercepted 1 | . . . . 1 Recyclers Shooed 4 | . 1 2 . 1 Parts Field Recycled . | . . . . . Retrieved Matter . | . . . . . Parts Self-Destructed . | . . . . . Prevented . | . . . . . Parts Restored . | . . . . . Kills | -11 -10 -9 -9 -8 ------- Run | Yrd Mat Mat Min Mat Combat Hostiles Destroyed 20 | . 3 9 3 5 Melee 2 | . . . 1 1 Guns 9 | . 2 3 . 4 Cannons 3 | . . 3 . . AOE 6 | . 1 3 2 . Classes Destroyed 8 | . 1 6 . 1 Worker 2 | . . 1 . 1 Hauler 1 | . . . . 1 Operator 1 | . . 1 . . Watcher 1 | . . 1 . . Swarmer 4 | . 3 . . 1 Grunt 10 | . . 5 2 3 Duelist 2 | . . 1 1 . Sentry 4 | . . 3 . 1 Best Kill Streak 6 | . 2 6 2 5 Combat Bots Only 4 | . 2 4 2 3 Max Kills in Single Turn 2 | . 2 2 1 1 Gunslinging . | . . . . . Exploded 2 | . 1 2 1 . Melee 1 | . . . 1 1 Uniques/NPCs Destroyed . | . . . . . Combat | -11 -10 -9 -9 -8 -------- Run | Yrd Mat Mat Min Mat Hostile Shots Fired 278 | . 17 98 15 148 Missed 70 | . 7 24 1 38 Hits 208 | . 10 74 14 110 Melee 18 | . . 16 1 1 Projectile 190 | . 10 58 13 109 Critical Strikes 11 | . 1 2 . 8 Damage Taken 3272 | . 90 1231 233 1718 Core 846 | . 19 197 71 559 Absorbed by Shields . | . . . . . Core Remaining (%) 75 | 100 92 . 33 . Volleys Fired 68 | . 12 38 4 14 Largest 3 | . 2 2 2 3 Hottest 138 | . 70 123 123 138 Shots Fired 109 | . 13 59 7 30 Gun 68 | . 12 25 3 28 Cannon 24 | . . 24 . . Launcher 14 | . 1 9 2 2 Special 3 | . . 1 2 . Kinetic 32 | . . 21 3 8 Thermal 63 | . 12 29 2 20 Explosive 14 | . 1 9 2 2 Electromagnetic . | . . . . . Robot Hit Streak 7 | . 2 7 1 3 Robot Miss Streak 6 | . 6 3 3 4 Penetration Max . | . . . . . Secondary Targets . | . . . . . Shots Hit Robots 71 | . 5 42 5 19 Core Hits 46 | . 5 21 5 15 Critical Kills . | . . . . . Critical Parts Destroyed 1 | . . . . 1 Critical Strikes 3 | . . 1 . 2 Burn 1 | . . 1 . . Smash 1 | . . . . 1 Sever 1 | . . . . 1 Melee Attacks 10 | . . . 3 7 Impact 5 | . . . . 5 Slashing 5 | . . . 3 2 Piercing . | . . . . . Sneak Attacks . | . . . . . Combat Hostiles . | . . . . . Follow-up Attacks . | . . . . . Damage Inflicted 2009 | . 181 1036 281 511 Guns 665 | . 68 279 18 300 Cannons 333 | . . 333 . . Explosions 748 | . 113 400 167 68 Melee 239 | . . . 96 143 Ramming . | . . . . . Kinetic 347 | . . 228 18 101 Thermal 675 | . 68 408 . 199 Explosive 748 | . 113 400 167 68 Electromagnetic . | . . . . . Impact 82 | . . . . 82 Slashing 157 | . . . 96 61 Piercing . | . . . . . Highest Corruption 1 | . . 1 1 . Average Corruption 1 | . . 1 1 . Corruption Purged . | . . . . . Corruption Blocked . | . . . . . Effects 1 | . . . 1 . Energy Discharges 1 | . . . 1 . Overload Shots . | . . . . . Overflow Damage 23 | . . . 8 15 Projectiles . | . . . . . Explosions 8 | . . . 8 . Melee 15 | . . . . 15 Knockbacks . | . . . . . Impact . | . . . . . Kinetic . | . . . . . Secondary . | . . . . . Self-Inflicted Damage 72 | . . 6 66 . Shots 3 | . . 1 2 . Rammed . | . . . . . Targets Rammed . | . . . . . Kicked . | . . . . . Crushed . | . . . . . Highest Temperature 207 | . 9 17 48 207 Average Temperature 41 | . 8 12 19 63 Received Heat Transfer 1167 | . . 342 78 747 Siege Activations . | . . . . . Martial Activations . | . . . . . Shielding Activations . | . . . . . Robots Disrupted . | . . . . . Combat Hostiles . | . . . . . Robots Corrupted . | . . . . . Combat Hostiles . | . . . . . Parts Fried . | . . . . . Impact Corruptions 1 | . . . . 1 Robots Melted . | . . . . . Combat Hostiles . | . . . . . Parts Melted 1 | . . 1 . . Heat Transferred 1533 | . 150 975 . 408 Parts Sabotaged . | . . . . . Parts Stolen . | . . . . . Parts Stripped . | . . . . . Power Chain Reactions . | . . . . . Alert | -11 -10 -9 -9 -8 ------- Run | Yrd Mat Mat Min Mat Maximum Alert Level . | . . . . . Low Security (%) 100 | 100 100 100 100 100 Level 1 . | . . . . . Level 2 . | . . . . . Level 3 . | . . . . . Level 4 . | . . . . . Level 5 . | . . . . . High Security . | . . . . . Max Security . | . . . . . Peak Influence 190 | . 70 190 90 40 Initial 37 | . . 16 37 . Average 63 | . 31 107 43 11 Influence Increases 675 | . 80 353 83 159 Destroy 0b10 Robot/C 400 | . 60 180 60 100 Destroy 0b10 Robot/NC 25 | . . 15 . 10 Destroy Leader 104 | . 10 52 10 32 Disable Machine 30 | . . 30 . . Destroy Structure 101 | . 10 61 13 17 Lose Combat Pursuer 15 | . . 15 . . Influence Decreases 675 | . 40 296 180 159 Entered New Map 84 | . . 24 60 . Time Decay 402 | . 40 222 90 50 Lost Part 189 | . . 50 30 109 Squads Dispatched 3 | . . 2 . 1 Investigation 1 | . . 1 . . Extermination . | . . . . . Reinforcement 2 | . . 1 . 1 Assault . | . . . . . Garrison . | . . . . . Intercept . | . . . . . Searches Triggered . | . . . . . Construction Impeded . | . . . . . Haulers Reinforced . | . . . . . Active Scanning Responses . | . . . . . Cargo Convoy Interrupts . | . . . . . Stealth | -11 -10 -9 -9 -8 --------- Run | Yrd Mat Mat Min Mat Distress Signals 4 | . . 1 . 3 Communications Jammed . | . . . . . Distress Signals . | . . . . . Times Spotted 46 | . 3 19 2 22 Peak Tracking Total 12 | . 3 4 2 12 Tactical Retreats 1 | . . 1 . . Traps | -11 -10 -9 -9 -8 ------- Run | Yrd Mat Mat Min Mat Traps Triggered . | . . . . . Indirectly . | . . . . . Trap Hack Attempts . | . . . . . Triggered . | . . . . . Disarmed . | . . . . . Reprogrammed . | . . . . . Reused . | . . . . . Traps Extracted . | . . . . . Installed . | . . . . . Triggered . | . . . . . Machines | -11 -10 -9 -9 -8 ---------- Run | Yrd Mat Mat Min Mat Machines Disabled 2 | . . 2 . . Max in Single Turn 2 | . . 2 . . Machines Repaired . | . . . . . Machines Dismantled . | . . . . . Machines Sabotaged . | . . . . . Overloaded Fab Kills . | . . . . . Hacking | -11 -10 -9 -9 -8 --------- Run | Yrd Mat Mat Min Mat Machines Accessed 6 | . 1 2 1 2 Terminals 3 | . 1 . 1 1 Fabricators . | . . . . . Repair Stations . | . . . . . Recycling Units 1 | . . 1 . . Scanalyzers 2 | . . 1 . 1 Garrison Access . | . . . . . Total Hacks 11 | . 1 6 1 3 Successful 10 | . 1 6 . 3 Failed 1 | . . . 1 . Catastrophic . | . . . . . Database Lockouts . | . . . . . Manual . | . . . . . Terminals 3 | . 1 . 1 1 Fabricators . | . . . . . Repair Stations . | . . . . . Recycling Units 3 | . . 3 . . Scanalyzers 5 | . . 3 . 2 Garrison Access . | . . . . . Terminal Hacks 2 | . 1 . . 1 Record 1 | . . . . 1 Alert Level 1 | . 1 . . . Fabricator Hacks . | . . . . . Repair Station Hacks . | . . . . . Recycling Unit Hacks 3 | . . 3 . . Recycle Component 2 | . . 2 . . Process 1 | . . 1 . . Scanalyzer 5 | . . 3 . 2 Insert Component 2 | . . 1 . 1 Analyze 2 | . . 1 . 1 Retrieve Study 1 | . . 1 . . Garrison Access Hacks . | . . . . . Unauthorized Hacks . | . . . . . Terminals . | . . . . . Fabricators . | . . . . . Repair Stations . | . . . . . Recycling Units . | . . . . . Scanalyzers . | . . . . . Garrison Access . | . . . . . Data Cores Recovered . | . . . . . Used . | . . . . . Hacking Detections 5 | . 1 2 . 2 Full Trace Events 2 | . . 2 . . Feedback Events 1 | . . 1 . . Corruption 1 | . . 1 . . Feedback Blocked . | . . . . . Robot Schematics Acquired . | . . . . . Robots Built . | . . . . . Authchips . | . . . . . Time . | . . . . . Total Robot Build Rating . | . . . . . Part Schematics Acquired 2 | . . 1 . 1 Parts Built . | . . . . . Authchips . | . . . . . Time . | . . . . . Total Part Build Rating . | . . . . . Part Studies Acquired 1 | . . 1 . . Parts Repaired . | . . . . . Time . | . . . . . Parts Recycled 2 | . . 2 . . Recycled Matter 166 | . . 166 . . Retrieved Matter . | . . . . . Retrieved Components . | . . . . . Parts Scanalyzed 2 | . . 1 . 1 Part Schematics Acquired 2 | . . 1 . 1 Parts Damaged . | . . . . . Bothacking | -11 -10 -9 -9 -8 ------------ Run | Yrd Mat Mat Min Mat Used RIF Installer . | . . . . . Robots Hacked . | . . . . . Non-combat . | . . . . . Combat . | . . . . . Robot Hacks Applied . | . . . . . Relay Couplers Released . | . . . . . Fabnet Peak Effective % . | . . . . . Robots Rewired . | . . . . . Allies Hacked . | . . . . . Hacks Repelled . | . . . . . Allies | -11 -10 -9 -9 -8 -------- Run | Yrd Mat Mat Min Mat Total Allies . | . . . . . Largest Group . | . . . . . Highest-Rated Group . | . . . . . Highest-Rated Ally . | . . . . . Total Orders . | . . . . . Ally Attacks . | . . . . . Total Damage . | . . . . . Kills . | . . . . . Allies Corrupted . | . . . . . Allies Melted . | . . . . . Intel | -11 -10 -9 -9 -8 ------- Run | Yrd Mat Mat Min Mat Active Infowar (turns) 689 | . 27 361 197 104 Sensors 124 | . 27 97 . . ECM 565 | . . 264 197 104 Robot Analysis Total . | . . . . . Derelict Logs Recovered 1 | . . . 1 . Drone Launches . | . . . . . Drone Recoveries . | . . . . . Exploration | -11 -10 -9 -9 -8 ------------- Run | Yrd Mat Mat Min Mat Turns Passed 1118 | 59 126 525 197 211 Spaces Moved 541 | 42 80 220 116 83 Core 4 | 4 . . . . Treads 23 | . . 23 . . Legs 514 | 38 80 197 116 83 Wheels . | . . . . . Hover . | . . . . . Flight . | . . . . . Fastest Speed 50 | 50 120 120 105 110 Average Speed 143 | 116 120 167 143 118 Slowest Speed 240 | 120 120 240 190 190 Overloaded Moves . | . . . . . Propulsion Burnouts . | . . . . . Robots Hopped . | . . . . . Potential Cave-ins . | . . . . . Cave-ins Triggered . | . . . . . Exploration Rate (%) 22 | 3 24 32 39 12 Regions Visited 4 Branch Regions 1 Pre-discovered Areas 1 | . . . 1 . Known Exits Taken . | . . . . . Unknown Exits Taken 4 | 1 1 1 1 . Scrap Searched 2 | . . . 2 . Spaces Dug . | . . . . . Terrain Destroyed 129 | . 10 89 13 17 Melee . | . . . . . Projectile . | . . . . . AOE 129 | . 10 89 13 17 Terrain Rammed . | . . . . . Walls Destroyed . | . . . . . Machines Disabled . | . . . . . Actions | -11 -10 -9 -9 -8 --------- Run | Yrd Mat Mat Min Mat Total 741 | 50 96 311 129 155 Wait 49 | . . 19 . 30 Move 537 | 41 79 219 115 83 Hop . | . . . . . Pick Up 25 | 5 2 13 1 4 Fast Attach 9 | 4 1 2 . 2 Attach 21 | . 2 7 2 10 Detach 1 | . . 1 . . Swap 19 | . . 10 4 5 Drop 2 | . . 2 . . Fire 68 | . 12 38 4 14 Melee 10 | . . . 3 7 Ram . | . . . . . Kick . | . . . . . Crush . | . . . . . Escape Stasis . | . . . . . Rewire . | . . . . . Trap . | . . . . . Miscellaneous . | . . . . . Route ------- -11/Scrapyard -10/Materials -9/Materials -9/Mines -8/Materials History --------- Turn | Location | Event 14 | -11/Scrapyard | Discovered new exit (range 15) 60 | -11/Scrapyard | Entered Materials 150 | -10/Materials | Discovered new exit (range 13) 186 | -10/Materials | Entered another Materials area 186 | -9/Materials | Evolved 2 slots: Power x1, Utility x1 312 | -9/Materials | Build established: Mutant 460 | -9/Materials | Lost 3 parts (1p2n) 656 | -9/Materials | Build established: Scavenger-Mutant 702 | -9/Materials | Discovered new exit (range 6) 711 | -9/Materials | Entered Mines 712 | -9/Mines | Core integrity fell below 50% 767 | -9/Mines | Lost 3 parts (1u2w) 827 | -9/Mines | Learned location of Zion (-6) 895 | -9/Mines | Discovered new exit (range 14) 908 | -9/Mines | Entered Materials 908 | -8/Materials | Evolved 2 slots: Propulsion x1, Weapon x1 1106 | -8/Materials | Core integrity fell below 50% 1116 | -8/Materials | Core integrity fell below 20% 1119 | -8/Materials | Destroyed by G-47 Trooper with Particle Gun Last Messages --------------- K-01 Serf collects debris. U-05 Engineer lays Concrete. U-05 Engineer knocked back. U-05 Engineer builds a Wall. K-01 Serf collects debris. B-36 Bruiser suffers critical hit (Smash). Destroyed Lgt. Treads. B-36 Bruiser system corrupted by crushing effect. S-10 Pest destroyed. K-01 Serf collects debris. U-05 Engineer builds a Wall. Lgt. Treads blasted off. K-01 Serf collects debris. U-05 Engineer lays Concrete. K-01 Serf collects debris. U-05 Engineer lays Concrete. U-05 Engineer builds a Wall. U-05 Engineer lays Concrete. Knocked back. Map ----- +----------------------------------------------------+ | ?????????????????????????????????????????????????? | | ?????????????????????????????????????????????????? | | ?????????????????????????????????????????????????? | | ?????????????????????????????????????????????????? | | ?????????????????????????????????????????????????? | | ?????????????????????????????????????????????????? | | ?????????????????????????????????????????????????? | | ?????????????????????????????????????????????????? | | ?????????????????????????????????????????????????? | | ?????????????????????????????????????????????????? | | ?????????????????????????????????????????????????? | | ???????????????????# ??????????????????????????? | | ?????????????????? ??????????????????????????? | | ??????????????????? ??????????????????????????? | | ??????????????????? #?????????????????????????? | | ???????????????????# #?????????????????????????? | | ???????????????????# #?????????????????????????? | | ???????????????????# #?????????????????????????? | | ??????????? ???????# w +?????????????????????????? | | ???????????? "?????#w #?????????????????????????? | | ????????????? ????# ^^#?????????????????????????? | | ?????????????"""??## ^^###########???????????????? | | ?????????????""" ?# ####### ####w###????????? | | ?????????# """ # w%s gu %g ?????? | | ?????????? + %* % sH *k a ?????? | | ?????????????????##k =%[g@=b %u ?????? | | ??????????????????# #### # #######????????? | | ?????????????????####+##### ####??????????????? | | ?????????????????# % [ ## #?????????????????? | | ?????????????????# " ## #?????????????????? | | ?????????????????# T ## #?????????????????? | | ?????????????????# " ## #?????????????????? | | ?????????????????# ## ##????????????????? | | ?????????????????# """ %# #????????????????? | | ?????????????????# """ # #????????????????? | | ?????????????????# """ / T #????????????????? | | ?????????????????# # #????????????????? | | ?????????????????########## #????????????????? | | ??????????????????????????#### ##????????????????? | | ?????????????????????????????# #?????????????????? | | ?????????????????????????????# #?????????????????? | | ?????????????????????????????# #?????????????????? | | ?????????????????????????????# #?????????????????? | | ?????????????????????????????# #?????????????????? | | ?????????????????????????????# #?????????????????? | | ?????????????????????????????# #?????????????????? | | ?????????????????????????????# #?????????????????? | | ?????????????????????????????# #?????????????????? | | ?????????????????????????????# #?????????????????? | | ?????????????????????????????# #?????????????????? | +----------------------------------------------------+ Best States ------------- Heat Dissipation 50 Energy Generation 15 Energy Capacity 400 Matter Stores 300 Matter Capacity 300 Sight Range 16 Robot Scan Range 14 Terrain Scan Density 10 ECM Strength 1 Evasion (%) 55 Recoil Reduction 2 Energy Filtering 30 Offensive Hacking 10 Item Schematics ----------------- Beam Cannon | -9/Materials | Scanalyzed Ion Engine | -8/Materials | Scanalyzed Robot Schematics ------------------ None Fabricated ------------ Nothing Repaired ---------- Nothing Studied --------- Imp. Aluminum Leg | -9/Materials | Hacked Alien Tech Used ----------------- None Achievements -------------- None Challenges ------------ None Game ------ Seed DynamicAuthchipDeconstructor Manual? 0 Play Time 00:29:31 Cumulative 13.1 hours Start 2026.03.04 @ 19:51:27 End 2026.03.04 @ 23:41:30 Sessions 2 Manual Loads 0 Difficulty Rogue Special Mode None Game No. 14 Rogue 14 Adventurer 0 Explorer 0 Win Type - Total 0 Types 0/0/0/0/0/0/0/0/0/0 Lore% 8 Gallery% 13 Achievement% 12 Wizard Run 0 Options --------- Layout 1 ASCII 0 Keyboard 0 Movement Mouse Keybinds 0 Fullscreen 1 Font 32/Tamsyn Map View 25x20 Zoom Use 88% Tactical HUD 0 Map Filters NONE Filters LOW_CONTRAST(13,24,33) Steam 1 RUN: 54777d8b-8755-404c-b694-db5da9dab2b5